[Event "Live Chess"]
[Site "Chess.com"]
[Date "2024.06.02"]
[Round "-"]
[White "Dhaydon19"]
[Black "JoeyCage"]
[Result "1/2-1/2"]
[WhiteElo "2676"]
[BlackElo "2395"]
[TimeControl "300"]
[EndTime "23:12:05 PDT"]
[Termination "Game drawn - insufficient material"]

1. d4 {[%clk 0:04:57.9]} 1... e6 {[%clk 0:04:58.8]} 2. Nf3 {[%clk 0:04:56.6]}
2... d5 {[%clk 0:04:57.6]} 3. g3 {[%clk 0:04:56]} 3... Nf6 {[%clk 0:04:55.9]} 4.
Bg2 {[%clk 0:04:54.4]} 4... c5 {[%clk 0:04:54.5]} 5. c3 {[%clk 0:04:53.7]} 5...
cxd4 {[%clk 0:04:53.5]} 6. Nxd4 {[%clk 0:04:53.3]} 6... Nc6 {[%clk 0:04:52]} 7.
Nxc6 {[%clk 0:04:52.5]} 7... bxc6 {[%clk 0:04:50.5]} 8. O-O {[%clk 0:04:52.2]}
8... Be7 {[%clk 0:04:49.3]} 9. Nd2 {[%clk 0:04:51.6]} 9... O-O {[%clk 0:04:48]}
10. Qc2 {[%clk 0:04:50.5]} 10... Ba6 {[%clk 0:04:46.7]} 11. Re1 {[%clk
0:04:49.7]} 11... Rb8 {[%clk 0:04:44.9]} 12. e4 {[%clk 0:04:48]} 12... Qb6
{[%clk 0:04:39.5]} 13. exd5 {[%clk 0:04:44.3]} 13... cxd5 {[%clk 0:04:38.4]} 14.
Nf3 {[%clk 0:04:42.4]} 14... Rfc8 {[%clk 0:04:36.5]} 15. Ne5 {[%clk 0:04:33.1]}
15... Qb7 {[%clk 0:04:29.8]} 16. Rb1 {[%clk 0:04:27.6]} 16... Nd7 {[%clk
0:04:27.6]} 17. Nxd7 {[%clk 0:04:25]} 17... Qxd7 {[%clk 0:04:26.4]} 18. Be3
{[%clk 0:04:23.7]} 18... Bc5 {[%clk 0:04:21.4]} 19. Bxc5 {[%clk 0:04:20.9]}
19... Rxc5 {[%clk 0:04:19.9]} 20. Qd2 {[%clk 0:04:20.4]} 20... Rbc8 {[%clk
0:04:15.7]} 21. Qd4 {[%clk 0:03:58.5]} 21... Rc4 {[%clk 0:04:10.8]} 22. Qe5
{[%clk 0:03:56.9]} 22... Qc7 {[%clk 0:04:09]} 23. Qxc7 {[%clk 0:03:53.6]} 23...
R4xc7 {[%clk 0:04:07]} 24. Rbd1 {[%clk 0:03:50.6]} 24... Rb8 {[%clk 0:04:03.4]}
25. Rd2 {[%clk 0:03:49.3]} 25... Bc4 {[%clk 0:04:02.3]} 26. a3 {[%clk
0:03:38.9]} 26... Rcb7 {[%clk 0:03:49.8]} 27. b4 {[%clk 0:03:35.7]} 27... Rc7
{[%clk 0:03:47]} 28. Re3 {[%clk 0:03:21.2]} 28... Rbc8 {[%clk 0:03:43.7]} 29.
Bf3 {[%clk 0:03:08.2]} 29... Bb5 {[%clk 0:03:41.9]} 30. Rc2 {[%clk 0:03:01]}
30... Kf8 {[%clk 0:03:18.7]} 31. Rc1 {[%clk 0:02:24.7]} 31... a6 {[%clk
0:03:10.7]} 32. Bd1 {[%clk 0:02:18.4]} 32... d4 {[%clk 0:03:06.1]} 33. Re5
{[%clk 0:02:14.7]} 33... Rxc3 {[%clk 0:03:02.7]} 34. Rxc3 {[%clk 0:02:13.1]}
34... Rxc3 {[%clk 0:03:00.8]} 35. a4 {[%clk 0:02:08.4]} 35... Bc6 {[%clk
0:02:46.4]} 36. Kf1 {[%clk 0:02:03.6]} 36... Rc1 {[%clk 0:02:34.9]} 37. Ke2
{[%clk 0:02:00.2]} 37... Rb1 {[%clk 0:02:33.6]} 38. Rc5 {[%clk 0:01:54.8]} 38...
Be4 {[%clk 0:02:24.1]} 39. b5 {[%clk 0:01:49.3]} 39... axb5 {[%clk 0:02:19.9]}
40. Rxb5 {[%clk 0:01:46.4]} 40... Rxb5 {[%clk 0:02:13.9]} 41. axb5 {[%clk
0:01:45.5]} 41... Ke7 {[%clk 0:02:13.1]} 42. b6 {[%clk 0:01:39.4]} 42... Kd6
{[%clk 0:02:11.4]} 43. f3 {[%clk 0:01:34.4]} 43... Bc6 {[%clk 0:02:08.2]} 44.
Kd3 {[%clk 0:01:33.5]} 44... Kc5 {[%clk 0:02:05.6]} 45. f4 {[%clk 0:01:23.6]}
45... Kxb6 {[%clk 0:02:03.6]} 46. Kxd4 {[%clk 0:01:22.7]} 46... Kc7 {[%clk
0:02:00.6]} 47. Ke5 {[%clk 0:01:19.7]} 47... Kd7 {[%clk 0:01:59.1]} 48. g4
{[%clk 0:01:11.4]} 48... f6+ {[%clk 0:01:57.7]} 49. Kd4 {[%clk 0:01:10.5]} 49...
Kd6 {[%clk 0:01:55.3]} 50. h4 {[%clk 0:01:08.3]} 50... e5+ {[%clk 0:01:54.1]}
51. Ke3 {[%clk 0:01:07.5]} 51... Kc5 {[%clk 0:01:51.5]} 52. g5 {[%clk
0:01:05.4]} 52... h6 {[%clk 0:01:46.6]} 53. Bg4 {[%clk 0:01:02.2]} 53... Kd5
{[%clk 0:01:35.5]} 54. Bf3+ {[%clk 0:01:00.7]} 54... Kd6 {[%clk 0:01:34.2]} 55.
Bg4 {[%clk 0:00:55.1]} 55... Bd7 {[%clk 0:01:27.5]} 56. Bf3 {[%clk 0:00:53.6]}
56... hxg5 {[%clk 0:01:23.2]} 57. hxg5 {[%clk 0:00:51.2]} 57... f5 {[%clk
0:01:18.4]} 58. Be2 {[%clk 0:00:49.2]} 58... Be6 {[%clk 0:01:14.3]} 59. Bh5
{[%clk 0:00:47.9]} 59... Kd5 {[%clk 0:01:09.2]} 60. Bg6 {[%clk 0:00:46]} 60...
Kd6 {[%clk 0:01:06.5]} 61. Bh5 {[%clk 0:00:44.9]} 61... Kd5 {[%clk 0:01:04.2]}
62. Be2 {[%clk 0:00:44]} 62... Kd6 {[%clk 0:01:03]} 63. Bd1 {[%clk 0:00:40.3]}
63... exf4+ {[%clk 0:01:01.9]} 64. Kxf4 {[%clk 0:00:38.9]} 64... g6 {[%clk
0:00:58.2]} 65. Ba4 {[%clk 0:00:36.6]} 65... Ke7 {[%clk 0:00:56.3]} 66. Ke5
{[%clk 0:00:35.1]} 66... Bf7 {[%clk 0:00:55.5]} 67. Bc2 {[%clk 0:00:33.4]} 67...
Be8 {[%clk 0:00:54.5]} 68. Bd1 {[%clk 0:00:32.4]} 68... Bf7 {[%clk 0:00:53.7]}
69. Bf3 {[%clk 0:00:31.7]} 69... Be8 {[%clk 0:00:53]} 70. Bd5 {[%clk 0:00:31]}
70... Bf7 {[%clk 0:00:52.9]} 71. Bc6 {[%clk 0:00:30.1]} 71... Be8 {[%clk
0:00:52.1]} 72. Bf3 {[%clk 0:00:23.8]} 72... Bf7 {[%clk 0:00:50.3]} 73. Be2
{[%clk 0:00:23.2]} 73... Be8 {[%clk 0:00:49.6]} 74. Bd3 {[%clk 0:00:22.9]} 74...
Bf7 {[%clk 0:00:49.5]} 75. Bxf5 {[%clk 0:00:22]} 75... gxf5 {[%clk 0:00:48.1]}
76. Kxf5 {[%clk 0:00:21.7]} 76... Kf8 {[%clk 0:00:47.2]} 77. Kf6 {[%clk
0:00:20.8]} 77... Kg8 {[%clk 0:00:46.1]} 78. g6 {[%clk 0:00:20.2]} 78... Bxg6
{[%clk 0:00:45.1]} 1/2-1/2

[Event "Live Chess"]
[Site "Chess.com"]
[Date "2024.06.02"]
[Round "-"]
[White "Crowded_House"]
[Black "McFim"]
[Result "1/2-1/2"]
[WhiteElo "1690"]
[BlackElo "1702"]
[TimeControl "300"]
[EndTime "23:12:29 PDT"]
[Termination "Game drawn by agreement"]

1. d4 {[%clk 0:04:57.9]} 1... d5 {[%clk 0:04:58.1]} 2. Bg5 {[%clk 0:04:56.9]}
2... Nf6 {[%clk 0:04:55.8]} 3. e3 {[%clk 0:04:55.4]} 3... e6 {[%clk 0:04:54.6]}
4. Bd3 {[%clk 0:04:53.8]} 4... Be7 {[%clk 0:04:53.3]} 5. Nd2 {[%clk 0:04:51.2]}
5... h6 {[%clk 0:04:52]} 6. Bh4 {[%clk 0:04:49.9]} 6... Nbd7 {[%clk 0:04:50.6]}
7. Ngf3 {[%clk 0:04:48.7]} 7... c5 {[%clk 0:04:48.4]} 8. c3 {[%clk 0:04:47.1]}
8... b6 {[%clk 0:04:46.6]} 9. O-O {[%clk 0:04:44.8]} 9... Bb7 {[%clk 0:04:45.5]}
10. Re1 {[%clk 0:04:41.7]} 10... cxd4 {[%clk 0:04:42.5]} 11. cxd4 {[%clk
0:04:35.9]} 11... O-O {[%clk 0:04:40.3]} 12. a3 {[%clk 0:04:35.2]} 12... a6
{[%clk 0:04:26.5]} 13. Rc1 {[%clk 0:04:33.2]} 13... Rc8 {[%clk 0:04:22.2]} 14.
Rxc8 {[%clk 0:04:31]} 14... Qxc8 {[%clk 0:04:20.7]} 15. Qc1 {[%clk 0:04:30.2]}
15... Qxc1 {[%clk 0:04:16]} 16. Rxc1 {[%clk 0:04:28.8]} 16... Rc8 {[%clk
0:04:15.2]} 17. Rxc8+ {[%clk 0:04:28.3]} 17... Bxc8 {[%clk 0:04:13.6]} 18. Ne5
{[%clk 0:04:24.2]} 18... g5 {[%clk 0:04:09.5]} 19. Nxd7 {[%clk 0:04:14.6]} 19...
Nxd7 {[%clk 0:04:03]} 20. Bg3 {[%clk 0:04:10.9]} 20... f6 {[%clk 0:03:54.9]} 21.
Kf1 {[%clk 0:04:06.3]} 21... Kf7 {[%clk 0:03:52.5]} 22. Ke2 {[%clk 0:04:05.3]}
22... b5 {[%clk 0:03:32.9]} 23. Nb3 {[%clk 0:03:57.4]} 23... h5 {[%clk
0:03:24.1]} 24. h3 {[%clk 0:03:54.1]} 1/2-1/2

[Event "Live Chess"]
[Site "Chess.com"]
[Date "2024.06.02"]
[Round "-"]
[White "KeithArkell"]
[Black "MaximKovalenko83"]
[Result "1-0"]
[WhiteElo "2423"]
[BlackElo "2213"]
[TimeControl "300"]
[EndTime "23:13:32 PDT"]
[Termination "KeithArkell won on time"]

1. d4 {[%clk 0:04:57.1]} 1... d5 {[%clk 0:04:58.4]} 2. Nf3 {[%clk 0:04:56.1]}
2... c5 {[%clk 0:04:55.2]} 3. c4 {[%clk 0:04:56]} 3... cxd4 {[%clk 0:04:53.3]}
4. cxd5 {[%clk 0:04:55.2]} 4... Qxd5 {[%clk 0:04:49.9]} 5. Nc3 {[%clk
0:04:54.3]} 5... Qa5 {[%clk 0:04:43.2]} 6. Nxd4 {[%clk 0:04:50.8]} 6... Bd7
{[%clk 0:04:41.8]} 7. g3 {[%clk 0:04:49.4]} 7... Nc6 {[%clk 0:04:38.1]} 8. Bg2
{[%clk 0:04:48.2]} 8... e5 {[%clk 0:04:29.9]} 9. Nxc6 {[%clk 0:04:47]} 9... Bxc6
{[%clk 0:04:28.4]} 10. Bxc6+ {[%clk 0:04:46.2]} 10... bxc6 {[%clk 0:04:28.3]}
11. Qa4 {[%clk 0:04:45.1]} 11... Qxa4 {[%clk 0:04:23.9]} 12. Nxa4 {[%clk
0:04:43.8]} 12... Bb4+ {[%clk 0:04:21.9]} 13. Bd2 {[%clk 0:04:43]} 13... Bxd2+
{[%clk 0:04:20.4]} 14. Kxd2 {[%clk 0:04:42.4]} 14... Ne7 {[%clk 0:04:16.7]} 15.
Rhc1 {[%clk 0:04:41.3]} 15... f6 {[%clk 0:04:14.7]} 16. Nc5 {[%clk 0:04:40.1]}
16... Kf7 {[%clk 0:04:12.1]} 17. Rc4 {[%clk 0:04:38.8]} 17... Rhd8+ {[%clk
0:04:10.1]} 18. Ke1 {[%clk 0:04:38.1]} 18... Rab8 {[%clk 0:04:06.5]} 19. b3
{[%clk 0:04:36.4]} 19... Rd5 {[%clk 0:04:00.5]} 20. Rac1 {[%clk 0:04:33.8]}
20... a5 {[%clk 0:03:44.4]} 21. f3 {[%clk 0:04:31.5]} 21... Rb4 {[%clk
0:03:39.9]} 22. a3 {[%clk 0:03:51.7]} 22... Rxc4 {[%clk 0:03:34.7]} 23. Rxc4
{[%clk 0:03:51.6]} 23... Nc8 {[%clk 0:03:09.3]} 24. e4 {[%clk 0:03:39.7]} 24...
Rd6 {[%clk 0:03:01.4]} 25. Ra4 {[%clk 0:03:27.7]} 25... Na7 {[%clk 0:02:59.1]}
26. Rxa5 {[%clk 0:03:26.6]} 26... Nb5 {[%clk 0:02:58.1]} 27. a4 {[%clk
0:03:25.7]} 27... Nd4 {[%clk 0:02:54.5]} 28. Ra7+ {[%clk 0:03:24.4]} 28... Kg6
{[%clk 0:02:51.3]} 29. Kf2 {[%clk 0:03:23.6]} 29... Nc2 {[%clk 0:02:47.8]} 30.
f4 {[%clk 0:03:08.1]} 30... Rd2+ {[%clk 0:02:42.8]} 31. Kf3 {[%clk 0:03:06.6]}
31... Nd4+ {[%clk 0:02:39.4]} 32. Ke3 {[%clk 0:03:05.7]} 32... Rxh2 {[%clk
0:02:25.7]} 33. f5+ {[%clk 0:02:58.9]} 33... Kh6 {[%clk 0:02:23.3]} 34. Ne6
{[%clk 0:02:52.8]} 34... Nxb3 {[%clk 0:02:18.3]} 35. Rxg7 {[%clk 0:02:45.2]}
35... Ra2 {[%clk 0:02:12.4]} 36. Rg4 {[%clk 0:02:42]} 36... Rh2 {[%clk
0:02:04.2]} 37. Rh4+ {[%clk 0:02:22.3]} 37... Rxh4 {[%clk 0:02:01.5]} 38. gxh4
{[%clk 0:02:22.1]} 38... Kh5 {[%clk 0:02:00.4]} 39. Nf8 {[%clk 0:02:10.8]} 39...
h6 {[%clk 0:01:56.3]} 40. Ng6 {[%clk 0:02:09.3]} 40... Kg4 {[%clk 0:01:55.3]}
41. Ke2 {[%clk 0:01:57.4]} 41... c5 {[%clk 0:01:43.9]} 42. Kd3 {[%clk
0:01:55.8]} 42... Na5 {[%clk 0:01:41.7]} 43. Kc3 {[%clk 0:01:50.4]} 43... Kf3
{[%clk 0:01:40.4]} 44. Ne7 {[%clk 0:01:47.7]} 44... Kxe4 {[%clk 0:01:38.4]} 45.
h5 {[%clk 0:01:47.1]} 45... Kf4 {[%clk 0:01:36.2]} 46. Kd3 {[%clk 0:01:37]}
46... Kg5 {[%clk 0:01:34.3]} 47. Ke4 {[%clk 0:01:32.7]} 47... c4 {[%clk
0:01:30.9]} 48. Nd5 {[%clk 0:01:30.1]} 48... Nc6 {[%clk 0:01:07.5]} 49. Kf3
{[%clk 0:01:22.2]} 49... Kxf5 {[%clk 0:01:04.2]} 50. Ne3+ {[%clk 0:01:20.3]}
50... Kg5 {[%clk 0:01:01.5]} 51. Nxc4 {[%clk 0:01:19.4]} 51... Kxh5 {[%clk
0:00:57.4]} 52. Ke4 {[%clk 0:01:17.7]} 52... Kg5 {[%clk 0:00:54.4]} 53. Kd5
{[%clk 0:01:16.9]} 53... Nb8 {[%clk 0:00:45.9]} 54. Kd6 {[%clk 0:01:08]} 54...
h5 {[%clk 0:00:42.3]} 55. Kc7 {[%clk 0:01:07.2]} 55... Na6+ {[%clk 0:00:40.1]}
56. Kb6 {[%clk 0:01:05.8]} 56... Nb4 {[%clk 0:00:36]} 57. Kb5 {[%clk 0:01:04.9]}
57... Nd5 {[%clk 0:00:31.4]} 58. Kc5 {[%clk 0:01:04.2]} 58... Nc7 {[%clk
0:00:24.6]} 59. Kc6 {[%clk 0:01:00.7]} 59... Na6 {[%clk 0:00:23.2]} 60. Kb5
{[%clk 0:00:58.6]} 60... Nc7+ {[%clk 0:00:19.6]} 61. Kb6 {[%clk 0:00:57.9]}
61... Nd5+ {[%clk 0:00:17.9]} 62. Kc6 {[%clk 0:00:57.2]} 62... Nb4+ {[%clk
0:00:14.5]} 63. Kb5 {[%clk 0:00:56.4]} 63... Nd5 {[%clk 0:00:13.1]} 64. a5
{[%clk 0:00:56]} 64... h4 {[%clk 0:00:11.6]} 65. Kc5 {[%clk 0:00:54.3]} 65...
Nc7 {[%clk 0:00:10.3]} 66. Kb6 {[%clk 0:00:53.1]} 66... Nd5+ {[%clk 0:00:08.3]}
67. Kc5 {[%clk 0:00:51]} 67... h3 {[%clk 0:00:06.9]} 68. Nd2 {[%clk 0:00:49]}
68... Kg4 {[%clk 0:00:03.6]} 69. Nf1 {[%clk 0:00:47.6]} 1-0

[Event "Live Chess"]
[Site "Chess.com"]
[Date "2024.06.02"]
[Round "-"]
[White "Delacorta"]
[Black "Tatarinov_Maxim"]
[Result "0-1"]
[WhiteElo "1514"]
[BlackElo "2281"]
[TimeControl "300"]
[EndTime "23:13:44 PDT"]
[Termination "Tatarinov_Maxim won by resignation"]

1. d4 {[%clk 0:04:57]} 1... Nf6 {[%clk 0:04:57.2]} 2. Nf3 {[%clk 0:04:55.7]}
2... g6 {[%clk 0:04:56.1]} 3. e3 {[%clk 0:04:54.8]} 3... Bg7 {[%clk 0:04:55.6]}
4. c4 {[%clk 0:04:53.6]} 4... O-O {[%clk 0:04:55.5]} 5. Nc3 {[%clk 0:04:52.8]}
5... c5 {[%clk 0:04:55.4]} 6. h4 {[%clk 0:04:44.1]} 6... cxd4 {[%clk 0:04:48.6]}
7. exd4 {[%clk 0:04:43.2]} 7... d5 {[%clk 0:04:46]} 8. h5 {[%clk 0:04:39.9]}
8... Bg4 {[%clk 0:04:36.6]} 9. hxg6 {[%clk 0:04:33.9]} 9... hxg6 {[%clk
0:04:36.5]} 10. cxd5 {[%clk 0:04:14.5]} 10... Nxd5 {[%clk 0:04:32.7]} 11. Be2
{[%clk 0:03:48.7]} 11... Nc6 {[%clk 0:04:23.1]} 12. Bh6 {[%clk 0:03:33.6]} 12...
Bxh6 {[%clk 0:04:18.9]} 13. Rxh6 {[%clk 0:03:31.3]} 13... Kg7 {[%clk 0:04:18.8]}
14. Rh4 {[%clk 0:03:28.6]} 14... Bxf3 {[%clk 0:04:13.7]} 15. Bxf3 {[%clk
0:03:22.1]} 15... Nxc3 {[%clk 0:04:12.6]} 16. bxc3 {[%clk 0:03:19.9]} 16... Rh8
{[%clk 0:04:12]} 17. Rxh8 {[%clk 0:03:15.3]} 17... Qxh8 {[%clk 0:04:11.9]} 18.
g3 {[%clk 0:03:03.2]} 18... Rc8 {[%clk 0:03:56.6]} 19. Qe2 {[%clk 0:02:58.3]}
19... Qd8 {[%clk 0:03:51.8]} 20. Rb1 {[%clk 0:02:41.5]} 20... b6 {[%clk
0:03:41.9]} 21. Bxc6 {[%clk 0:02:15.5]} 21... Rxc6 {[%clk 0:03:41.8]} 22. Qe5+
{[%clk 0:02:14]} 22... Kg8 {[%clk 0:03:34.1]} 23. Kd2 {[%clk 0:02:11.8]} 23...
Re6 {[%clk 0:03:30.5]} 24. Qg5 {[%clk 0:01:59.2]} 24... Qa8 {[%clk 0:03:14.5]}
25. d5 {[%clk 0:01:53.7]} 25... Rf6 {[%clk 0:03:09.8]} 26. f4 {[%clk 0:01:44.6]}
26... Rf5 {[%clk 0:03:01.4]} 27. Qxe7 {[%clk 0:01:40.3]} 27... Qxd5+ {[%clk
0:02:59.2]} 28. Kc2 {[%clk 0:01:36.6]} 28... Qxa2+ {[%clk 0:02:54.7]} 29. Rb2
{[%clk 0:01:32]} 29... Qa4+ {[%clk 0:02:52.4]} 30. Rb3 {[%clk 0:01:21.8]} 30...
Rd5 {[%clk 0:02:27.9]} 31. Qb4 {[%clk 0:01:03.4]} 31... Qd7 {[%clk 0:02:22.9]}
32. Kb2 {[%clk 0:00:47.3]} 32... Rd1 {[%clk 0:02:10.9]} 33. Qe4 {[%clk
0:00:24.7]} 33... Qd2+ {[%clk 0:02:04.4]} 34. Qc2 {[%clk 0:00:20.9]} 34... Qd6
{[%clk 0:01:58.3]} 35. Rb4 {[%clk 0:00:16.7]} 35... Rd2 {[%clk 0:01:55.8]} 0-1

[Event "Live Chess"]
[Site "Chess.com"]
[Date "2024.06.02"]
[Round "-"]
[White "MagnersCarlsberg2870"]
[Black "KyryloPoluliakh"]
[Result "1-0"]
[WhiteElo "1827"]
[BlackElo "1515"]
[TimeControl "300"]
[EndTime "23:13:46 PDT"]
[Termination "MagnersCarlsberg2870 won by checkmate"]

1. d4 {[%clk 0:04:56.8]} 1... Nf6 {[%clk 0:04:56.7]} 2. Nf3 {[%clk 0:04:54.8]}
2... g6 {[%clk 0:04:55.4]} 3. Nc3 {[%clk 0:04:53.8]} 3... Bg7 {[%clk 0:04:54.6]}
4. e4 {[%clk 0:04:53.1]} 4... d6 {[%clk 0:04:51.2]} 5. h3 {[%clk 0:04:52.1]}
5... O-O {[%clk 0:04:50.3]} 6. Bc4 {[%clk 0:04:51.3]} 6... Nc6 {[%clk
0:04:48.7]} 7. Qe2 {[%clk 0:04:49.9]} 7... e5 {[%clk 0:04:39.8]} 8. dxe5 {[%clk
0:04:46.7]} 8... Nxe5 {[%clk 0:04:35.5]} 9. Nxe5 {[%clk 0:04:45.2]} 9... dxe5
{[%clk 0:04:34.6]} 10. Bg5 {[%clk 0:04:43.7]} 10... Qd6 {[%clk 0:04:27]} 11. Rd1
{[%clk 0:04:40.4]} 11... Qb6 {[%clk 0:04:20.4]} 12. O-O {[%clk 0:04:32.5]} 12...
Be6 {[%clk 0:04:00.3]} 13. b3 {[%clk 0:04:18.6]} 13... Bxc4 {[%clk 0:03:49.7]}
14. Qxc4 {[%clk 0:04:17]} 14... Rfd8 {[%clk 0:03:45.4]} 15. Nd5 {[%clk
0:04:14.5]} 15... Qc6 {[%clk 0:03:15.5]} 16. Ne7+ {[%clk 0:04:12.1]} 16... Kh8
{[%clk 0:03:14.3]} 17. Nxc6 {[%clk 0:04:10.7]} 17... Rxd1 {[%clk 0:03:13.1]} 18.
Rxd1 {[%clk 0:04:08.8]} 18... bxc6 {[%clk 0:03:12]} 19. Qxc6 {[%clk 0:04:07.8]}
19... Rf8 {[%clk 0:03:08.8]} 20. Bxf6 {[%clk 0:04:06.4]} 20... Bxf6 {[%clk
0:03:06.8]} 21. Qxf6+ {[%clk 0:04:05.1]} 21... Kg8 {[%clk 0:03:06.4]} 22. Rd8
{[%clk 0:04:03.7]} 22... Rxd8 {[%clk 0:03:03.9]} 23. Qxd8+ {[%clk 0:04:02.5]}
23... Kg7 {[%clk 0:03:03.1]} 24. Qxc7 {[%clk 0:04:01.2]} 24... h5 {[%clk
0:03:01.2]} 25. Qxe5+ {[%clk 0:03:59.7]} 25... f6 {[%clk 0:03:00]} 26. Qe7+
{[%clk 0:03:58.3]} 26... Kh6 {[%clk 0:02:57.2]} 27. c4 {[%clk 0:03:57.2]} 27...
a5 {[%clk 0:02:54.3]} 28. c5 {[%clk 0:03:56.1]} 28... a4 {[%clk 0:02:53.5]} 29.
c6 {[%clk 0:03:55.2]} 29... axb3 {[%clk 0:02:52.4]} 30. axb3 {[%clk 0:03:54.1]}
30... f5 {[%clk 0:02:48.3]} 31. c7 {[%clk 0:03:52.8]} 31... fxe4 {[%clk
0:02:47.8]} 32. c8=Q {[%clk 0:03:51.3]} 32... e3 {[%clk 0:02:47.3]} 33. Qh8#
{[%clk 0:03:49.7]} 1-0

[Event "Live Chess"]
[Site "Chess.com"]
[Date "2024.06.02"]
[Round "-"]
[White "juniortay"]
[Black "ProfPoisson"]
[Result "1-0"]
[WhiteElo "2407"]
[BlackElo "1273"]
[TimeControl "300"]
[EndTime "23:14:10 PDT"]
[Termination "juniortay won by checkmate"]

1. e4 {[%clk 0:04:56]} 1... e5 {[%clk 0:04:57.1]} 2. Nc3 {[%clk 0:04:48.4]} 2...
Nf6 {[%clk 0:04:53.9]} 3. f4 {[%clk 0:04:47.3]} 3... d5 {[%clk 0:04:50.2]} 4.
fxe5 {[%clk 0:04:44.1]} 4... Nxe4 {[%clk 0:04:47.7]} 5. d3 {[%clk 0:04:43]} 5...
Nxc3 {[%clk 0:04:42.7]} 6. bxc3 {[%clk 0:04:41.9]} 6... Nc6 {[%clk 0:04:38.8]}
7. Nf3 {[%clk 0:04:39.5]} 7... Bg4 {[%clk 0:04:34]} 8. d4 {[%clk 0:04:36.7]}
8... Nxd4 {[%clk 0:04:08.2]} 9. cxd4 {[%clk 0:04:32.4]} 9... Bxf3 {[%clk
0:04:06.5]} 10. gxf3 {[%clk 0:04:29.4]} 10... Qh4+ {[%clk 0:04:04.6]} 11. Ke2
{[%clk 0:04:28.4]} 11... O-O-O {[%clk 0:03:49]} 12. Be3 {[%clk 0:04:23.6]} 12...
f6 {[%clk 0:03:45.7]} 13. Qe1 {[%clk 0:04:15.6]} 13... Qh5 {[%clk 0:03:32.4]}
14. Qg3 {[%clk 0:04:13.2]} 14... Qe8 {[%clk 0:03:28.9]} 15. f4 {[%clk
0:04:10.1]} 15... Qb5+ {[%clk 0:03:20.9]} 16. Kf2 {[%clk 0:04:08.7]} 16... Qb2
{[%clk 0:03:19]} 17. Bd3 {[%clk 0:04:07.4]} 17... fxe5 {[%clk 0:03:14.3]} 18.
fxe5 {[%clk 0:04:06.2]} 18... Bb4 {[%clk 0:03:08.6]} 19. Kg2 {[%clk 0:04:03.2]}
19... h5 {[%clk 0:03:02.3]} 20. Rab1 {[%clk 0:04:01.5]} 20... Qa3 {[%clk
0:02:55.9]} 21. Rb3 {[%clk 0:04:00.2]} 21... h4 {[%clk 0:02:46.8]} 22. Qh3+
{[%clk 0:03:57.2]} 22... Kb8 {[%clk 0:02:24.5]} 23. Rxa3 {[%clk 0:03:51.2]}
23... Bxa3 {[%clk 0:02:20.8]} 24. Rf1 {[%clk 0:03:49]} 24... g5 {[%clk
0:02:15.1]} 25. Rf7 {[%clk 0:03:44.3]} 25... g4 {[%clk 0:02:07.1]} 26. Qxg4
{[%clk 0:03:43.2]} 26... Rhg8 {[%clk 0:02:05]} 27. Rg7 {[%clk 0:03:42.2]} 27...
Rgf8 {[%clk 0:01:53.7]} 28. e6 {[%clk 0:03:22.8]} 28... Rde8 {[%clk 0:01:42]}
29. Bf5 {[%clk 0:03:15.7]} 29... a5 {[%clk 0:01:38.5]} 30. Bf4 {[%clk
0:03:06.2]} 30... Bd6 {[%clk 0:01:32.7]} 31. Bxd6 {[%clk 0:03:04.7]} 31... cxd6
{[%clk 0:01:31.3]} 32. e7 {[%clk 0:03:02.5]} 32... Rf7 {[%clk 0:01:23.9]} 33.
Rxf7 {[%clk 0:02:57.9]} 33... h3+ {[%clk 0:01:19.8]} 34. Kxh3 {[%clk 0:02:55.1]}
34... b5 {[%clk 0:01:19.3]} 35. Rf8 {[%clk 0:02:53.6]} 35... Rc8 {[%clk
0:01:16.4]} 36. Rxc8+ {[%clk 0:02:52]} 36... Kb7 {[%clk 0:01:16.2]} 37. e8=Q
{[%clk 0:02:50.7]} 37... b4 {[%clk 0:01:13.1]} 38. Qc6+ {[%clk 0:02:48.1]} 38...
Ka7 {[%clk 0:01:09.7]} 39. Ra8# {[%clk 0:02:48]} 1-0

[Event "Live Chess"]
[Site "Chess.com"]
[Date "2024.06.02"]
[Round "-"]
[White "nigelst"]
[Black "JanMur7"]
[Result "0-1"]
[WhiteElo "1734"]
[BlackElo "2295"]
[TimeControl "300"]
[EndTime "23:15:04 PDT"]
[Termination "JanMur7 won by resignation"]

1. e4 {[%clk 0:04:57.7]} 1... g6 {[%clk 0:04:57.8]} 2. d4 {[%clk 0:04:54.7]}
2... Bg7 {[%clk 0:04:57.1]} 3. Nc3 {[%clk 0:04:43.9]} 3... c5 {[%clk 0:04:55.8]}
4. Be3 {[%clk 0:04:40.5]} 4... cxd4 {[%clk 0:04:52.6]} 5. Bxd4 {[%clk
0:04:38.8]} 5... Nf6 {[%clk 0:04:52.2]} 6. Nf3 {[%clk 0:04:34.7]} 6... d6 {[%clk
0:04:50.8]} 7. e5 {[%clk 0:04:28.4]} 7... dxe5 {[%clk 0:04:44.8]} 8. Bxe5 {[%clk
0:04:22.7]} 8... O-O {[%clk 0:04:43.2]} 9. Qxd8 {[%clk 0:04:14.1]} 9... Rxd8
{[%clk 0:04:43.1]} 10. Bd3 {[%clk 0:04:08.5]} 10... Nc6 {[%clk 0:04:41]} 11. Bg3
{[%clk 0:03:58.8]} 11... Nb4 {[%clk 0:04:35.1]} 12. O-O-O {[%clk 0:03:56.1]}
12... Nxd3+ {[%clk 0:04:33.2]} 13. Rxd3 {[%clk 0:03:54.2]} 13... Rxd3 {[%clk
0:04:31.6]} 14. cxd3 {[%clk 0:03:53]} 14... b6 {[%clk 0:04:13.8]} 15. Re1 {[%clk
0:03:42.7]} 15... e6 {[%clk 0:04:10.6]} 16. Nb5 {[%clk 0:03:31.7]} 16... Bb7
{[%clk 0:04:05.6]} 17. Kb1 {[%clk 0:03:19]} 17... Nd5 {[%clk 0:03:57.2]} 18. Nd6
{[%clk 0:03:09.3]} 18... Ba6 {[%clk 0:03:53.8]} 19. d4 {[%clk 0:03:00.4]} 19...
Bd3+ {[%clk 0:03:39.9]} 20. Ka1 {[%clk 0:02:57.5]} 20... Nb4 {[%clk 0:03:37.6]}
21. a3 {[%clk 0:02:31.2]} 21... Nc2+ {[%clk 0:03:33.3]} 22. Ka2 {[%clk
0:02:29.6]} 22... Nxe1 {[%clk 0:03:30.8]} 23. Nxe1 {[%clk 0:02:27.9]} 23... Bf1
{[%clk 0:03:27.4]} 24. Nf3 {[%clk 0:02:16.5]} 24... Bxg2 {[%clk 0:03:24.4]} 25.
Ne5 {[%clk 0:02:14.5]} 25... Bxe5 {[%clk 0:03:17.4]} 26. dxe5 {[%clk 0:02:12.4]}
26... Bd5+ {[%clk 0:03:14.9]} 27. b3 {[%clk 0:02:10.2]} 27... a6 {[%clk
0:03:12.7]} 28. f4 {[%clk 0:02:04.4]} 28... b5 {[%clk 0:03:09.4]} 29. Bf2 {[%clk
0:02:00.5]} 29... Rd8 {[%clk 0:03:01.7]} 30. Bc5 {[%clk 0:01:58.6]} 30... Rd7
{[%clk 0:02:58.6]} 31. Kb2 {[%clk 0:01:53.1]} 31... Rc7 {[%clk 0:02:55.8]} 32.
b4 {[%clk 0:01:50.7]} 32... h5 {[%clk 0:02:52.5]} 33. Ne8 {[%clk 0:01:48.8]}
33... Rc8 {[%clk 0:02:43.7]} 34. Nf6+ {[%clk 0:01:36.8]} 34... Kg7 {[%clk
0:02:42.1]} 35. Nd7 {[%clk 0:01:29.4]} 35... Bc6 {[%clk 0:02:34.2]} 36. Nf6
{[%clk 0:01:20.3]} 36... Rd8 {[%clk 0:02:32]} 37. Bd6 {[%clk 0:01:16.8]} 37...
Rxd6 {[%clk 0:02:29.4]} 38. Nxh5+ {[%clk 0:01:06]} 38... gxh5 {[%clk 0:02:27.2]}
39. exd6 {[%clk 0:01:04.6]} 39... Kf6 {[%clk 0:02:26]} 40. Kc3 {[%clk
0:01:01.9]} 40... e5 {[%clk 0:02:25]} 41. fxe5+ {[%clk 0:00:55.3]} 41... Kxe5
{[%clk 0:02:24.9]} 0-1